[Event "Early-Titled-Tuesday-Blitz-April-02-2024"]
[Site "Chess.com"]
[Date "2024.04.02"]
[Round "8"]
[White "carloseduar100"]
[Black "madmax011"]
[Result "0-1"]
[WhiteElo "2195"]
[BlackElo "2352"]
[TimeControl "180+1"]
[EndTime "9:30:00 PDT"]
[Termination "madmax011 won by checkmate"]

1. e4 {[%clk 0:02:57.6]} 1... c5 {[%clk 0:03:00.1]} 2. d3 {[%clk 0:02:57.8]}
2... g6 {[%clk 0:02:59.2]} 3. Nf3 {[%clk 0:02:58]} 3... Bg7 {[%clk 0:02:59.6]}
4. g3 {[%clk 0:02:58.5]} 4... Nc6 {[%clk 0:02:59.8]} 5. Bg2 {[%clk 0:02:59]}
5... e6 {[%clk 0:03:00.4]} 6. O-O {[%clk 0:02:59.2]} 6... Nge7 {[%clk
0:03:01.1]} 7. Nc3 {[%clk 0:02:59.8]} 7... O-O {[%clk 0:03:01.6]} 8. Be3 {[%clk
0:02:59.1]} 8... b6 {[%clk 0:03:01.3]} 9. Qd2 {[%clk 0:02:59.4]} 9... d5 {[%clk
0:03:00.3]} 10. Ne2 {[%clk 0:02:53.4]} 10... Bxb2 {[%clk 0:02:55]} 11. c3 {[%clk
0:02:46.7]} 11... Bxa1 {[%clk 0:02:54.5]} 12. Rxa1 {[%clk 0:02:47.6]} 12... dxe4
{[%clk 0:02:54.4]} 13. dxe4 {[%clk 0:02:47.1]} 13... Qxd2 {[%clk 0:02:53.8]} 14.
Nxd2 {[%clk 0:02:47.2]} 14... Bb7 {[%clk 0:02:53.5]} 15. a4 {[%clk 0:02:46.1]}
15... Rfd8 {[%clk 0:02:51.5]} 16. Nc4 {[%clk 0:02:38.9]} 16... f6 {[%clk
0:02:44.8]} 17. Nf4 {[%clk 0:02:32.5]} 17... Kf7 {[%clk 0:02:43.4]} 18. a5
{[%clk 0:02:31.4]} 18... Ba6 {[%clk 0:02:06.8]} 19. Bf1 {[%clk 0:02:31]} 19...
g5 {[%clk 0:02:06.1]} 20. Nh5 {[%clk 0:01:50.6]} 20... Kg6 {[%clk 0:01:51.6]}
21. g4 {[%clk 0:01:50.6]} 21... Bxc4 {[%clk 0:01:28.2]} 22. Bxc4 {[%clk
0:01:50.4]} 22... Nxa5 {[%clk 0:01:28.2]} 23. Bxe6 {[%clk 0:01:50.6]} 23... Rd6
{[%clk 0:01:23.1]} 24. Ba2 {[%clk 0:01:34]} 24... Rad8 {[%clk 0:01:21.7]} 25.
Kg2 {[%clk 0:01:19.7]} 25... Rd1 {[%clk 0:01:16.7]} 26. Rxd1 {[%clk 0:01:19.9]}
26... Rxd1 {[%clk 0:01:17.6]} 27. h4 {[%clk 0:01:20.5]} 27... Nac6 {[%clk
0:01:09.6]} 28. Be6 {[%clk 0:01:14.7]} 28... Rd6 {[%clk 0:01:02.8]} 29. Bc4
{[%clk 0:01:12.6]} 29... Ne5 {[%clk 0:01:01.2]} 30. Bb5 {[%clk 0:01:12.8]} 30...
Rd8 {[%clk 0:00:40.5]} 31. f3 {[%clk 0:01:12.4]} 31... N7c6 {[%clk 0:00:30.9]}
32. Kg3 {[%clk 0:01:06.3]} 32... Rd1 {[%clk 0:00:25.5]} 33. f4 {[%clk
0:01:03.8]} 33... gxf4+ {[%clk 0:00:23.4]} 34. Nxf4+ {[%clk 0:01:03.6]} 34...
Kf7 {[%clk 0:00:23]} 35. Ba6 {[%clk 0:00:48.8]} 35... Ne7 {[%clk 0:00:19.6]} 36.
c4 {[%clk 0:00:43.4]} 36... Ra1 {[%clk 0:00:17.7]} 37. Bb7 {[%clk 0:00:41.5]}
37... Ra3 {[%clk 0:00:17.1]} 38. Ng2 {[%clk 0:00:40.9]} 38... Nxc4 {[%clk
0:00:16.5]} 39. Kf4 {[%clk 0:00:38.4]} 39... Nxe3 {[%clk 0:00:16.5]} 40. Nxe3
{[%clk 0:00:39.3]} 40... Ng6+ {[%clk 0:00:16.3]} 41. Kf3 {[%clk 0:00:32.4]}
41... Nxh4+ {[%clk 0:00:16.5]} 42. Kf4 {[%clk 0:00:32.6]} 42... Ng6+ {[%clk
0:00:15.9]} 43. Kf3 {[%clk 0:00:33]} 43... c4 {[%clk 0:00:14.9]} 44. Bd5+ {[%clk
0:00:30.9]} 44... Ke7 {[%clk 0:00:14]} 45. e5 {[%clk 0:00:26.9]} 45... Nxe5+
{[%clk 0:00:14]} 46. Ke4 {[%clk 0:00:27.8]} 46... Rxe3+ {[%clk 0:00:12.3]} 47.
Kxe3 {[%clk 0:00:27.6]} 47... Nxg4+ {[%clk 0:00:12.2]} 48. Kd4 {[%clk
0:00:28.5]} 48... Ne5 {[%clk 0:00:12.5]} 49. Be4 {[%clk 0:00:27.1]} 49... Kd6
{[%clk 0:00:12.6]} 50. Bxh7 {[%clk 0:00:26.9]} 50... a5 {[%clk 0:00:12.7]} 51.
Kc3 {[%clk 0:00:25.7]} 51... Kc5 {[%clk 0:00:12.6]} 52. Bg8 {[%clk 0:00:23.5]}
52... b5 {[%clk 0:00:12.7]} 53. Kb2 {[%clk 0:00:24.3]} 53... b4 {[%clk
0:00:12.6]} 54. Ka2 {[%clk 0:00:24.8]} 54... Kd4 {[%clk 0:00:12.5]} 55. Kb2
{[%clk 0:00:24.3]} 55... f5 {[%clk 0:00:10]} 56. Bh7 {[%clk 0:00:20.7]} 56... f4
{[%clk 0:00:10.2]} 57. Bf5 {[%clk 0:00:21.1]} 57... f3 {[%clk 0:00:09.8]} 58.
Bh3 {[%clk 0:00:21.9]} 58... f2 {[%clk 0:00:09.5]} 59. Ka2 {[%clk 0:00:22.1]}
59... Kc3 {[%clk 0:00:09]} 60. Bf1 {[%clk 0:00:21.4]} 60... b3+ {[%clk
0:00:08.6]} 61. Ka3 {[%clk 0:00:21.5]} 61... Kd2 {[%clk 0:00:07.6]} 62. Kb2
{[%clk 0:00:18]} 62... Nd3+ {[%clk 0:00:07.5]} 63. Ka3 {[%clk 0:00:17.6]} 63...
Ke1 {[%clk 0:00:07.7]} 64. Bh3 {[%clk 0:00:17.3]} 64... f1=Q {[%clk 0:00:07.9]}
65. Bxf1 {[%clk 0:00:17.5]} 65... Kxf1 {[%clk 0:00:08.8]} 66. Ka4 {[%clk
0:00:17.8]} 66... b2 {[%clk 0:00:08.9]} 67. Ka3 {[%clk 0:00:18]} 67... b1=Q
{[%clk 0:00:07.5]} 68. Ka4 {[%clk 0:00:18.9]} 68... Qb4# {[%clk 0:00:07.7]} 0-1

[Event "Early-Titled-Tuesday-Blitz-April-02-2024"]
[Site "Chess.com"]
[Date "2024.04.02"]
[Round "8"]
[White "Gennady_Kozlov"]
[Black "Gabrielian_Artur"]
[Result "0-1"]
[WhiteElo "2636"]
[BlackElo "2810"]
[TimeControl "180+1"]
[EndTime "9:30:02 PDT"]
[Termination "Gabrielian_Artur won by resignation"]

1. d4 {[%clk 0:02:56.1]} 1... Nf6 {[%clk 0:02:59.5]} 2. c4 {[%clk 0:02:55.9]}
2... c5 {[%clk 0:02:59.4]} 3. d5 {[%clk 0:02:55.6]} 3... e6 {[%clk 0:02:59.9]}
4. Nc3 {[%clk 0:02:54.4]} 4... g6 {[%clk 0:03:00]} 5. Nf3 {[%clk 0:02:53.4]}
5... exd5 {[%clk 0:02:59.4]} 6. cxd5 {[%clk 0:02:52.6]} 6... d6 {[%clk
0:02:59.8]} 7. Nd2 {[%clk 0:02:51]} 7... Nbd7 {[%clk 0:02:55.6]} 8. Nc4 {[%clk
0:02:50.5]} 8... Nb6 {[%clk 0:02:54.4]} 9. e3 {[%clk 0:02:50]} 9... Nxc4 {[%clk
0:02:54.1]} 10. Bxc4 {[%clk 0:02:50.8]} 10... Bg7 {[%clk 0:02:54.5]} 11. Bb5+
{[%clk 0:02:49.7]} 11... Bd7 {[%clk 0:02:54.1]} 12. Qa4 {[%clk 0:02:49.6]} 12...
O-O {[%clk 0:02:48.9]} 13. Bxd7 {[%clk 0:02:48.4]} 13... Nxd7 {[%clk 0:02:48.1]}
14. O-O {[%clk 0:02:48.9]} 14... a6 {[%clk 0:02:47.8]} 15. Qf4 {[%clk 0:02:45]}
15... Ne5 {[%clk 0:02:47.7]} 16. a4 {[%clk 0:02:39.9]} 16... c4 {[%clk
0:02:43.9]} 17. Ne4 {[%clk 0:02:25.4]} 17... Re8 {[%clk 0:02:39.8]} 18. f3
{[%clk 0:02:18.4]} 18... f5 {[%clk 0:02:29.6]} 19. Ng5 {[%clk 0:02:11.6]} 19...
Nd3 {[%clk 0:01:22.6]} 20. Qxc4 {[%clk 0:02:10.3]} 20... Nxc1 {[%clk 0:01:22.1]}
21. Ne6 {[%clk 0:02:09.2]} 21... Rc8 {[%clk 0:01:22]} 22. Nxd8 {[%clk
0:01:49.2]} 22... Rxc4 {[%clk 0:01:20.3]} 23. Nxb7 {[%clk 0:01:50.1]} 23... Ne2+
{[%clk 0:01:06.5]} 24. Kh1 {[%clk 0:01:43.2]} 24... Rxe3 {[%clk 0:00:59.7]} 25.
Nxd6 {[%clk 0:01:35.6]} 25... Rd4 {[%clk 0:00:59.8]} 26. Rfd1 {[%clk 0:01:32]}
26... Red3 {[%clk 0:00:59.7]} 27. Re1 {[%clk 0:01:27.7]} 27... Rxd5 {[%clk
0:00:55.1]} 28. Nxf5 {[%clk 0:01:24.7]} 28... gxf5 {[%clk 0:00:54.3]} 29. Rxe2
{[%clk 0:01:24.8]} 29... Rd1+ {[%clk 0:00:53.6]} 30. Re1 {[%clk 0:01:25.3]}
30... Rxe1+ {[%clk 0:00:53.4]} 31. Rxe1 {[%clk 0:01:26.2]} 31... Bxb2 {[%clk
0:00:52.9]} 32. g3 {[%clk 0:01:24.5]} 32... Kf7 {[%clk 0:00:52.1]} 33. Kg2
{[%clk 0:01:21.6]} 33... Rd2+ {[%clk 0:00:51.6]} 34. Kh3 {[%clk 0:01:21.1]}
34... Bf6 {[%clk 0:00:44.8]} 35. Rb1 {[%clk 0:01:16.4]} 35... Ra2 {[%clk
0:00:43.6]} 36. Rb4 {[%clk 0:01:16.1]} 36... a5 {[%clk 0:00:43.3]} 37. Rc4
{[%clk 0:01:15.5]} 37... h5 {[%clk 0:00:41.7]} 38. Rc5 {[%clk 0:01:06.6]} 38...
Rxa4 {[%clk 0:00:39]} 39. Rxf5 {[%clk 0:01:07]} 39... Kg6 {[%clk 0:00:38.2]} 40.
Rb5 {[%clk 0:01:07.5]} 40... Ra2 {[%clk 0:00:35.1]} 41. g4 {[%clk 0:01:03.6]}
41... hxg4+ {[%clk 0:00:34.8]} 42. Kxg4 {[%clk 0:01:03.1]} 42... a4 {[%clk
0:00:34.1]} 43. h4 {[%clk 0:01:01.6]} 43... Rg2+ {[%clk 0:00:30.9]} 44. Kh3
{[%clk 0:00:59.3]} 44... Rb2 {[%clk 0:00:30.7]} 45. Ra5 {[%clk 0:00:58.2]} 45...
Rb4 {[%clk 0:00:29.8]} 46. h5+ {[%clk 0:00:56.6]} 46... Kh6 {[%clk 0:00:28.8]}
47. Kg3 {[%clk 0:00:53.6]} 47... Bb2 {[%clk 0:00:25.2]} 48. f4 {[%clk
0:00:51.8]} 48... Bc1 {[%clk 0:00:21.9]} 49. Kf3 {[%clk 0:00:32.7]} 49... Rxf4+
{[%clk 0:00:21]} 50. Ke2 {[%clk 0:00:32.4]} 50... Rd4 {[%clk 0:00:18.4]} 51. Rc5
{[%clk 0:00:30.1]} 51... Bg5 {[%clk 0:00:17.6]} 52. Ra5 {[%clk 0:00:29.3]} 52...
Kxh5 {[%clk 0:00:17.4]} 53. Kf3 {[%clk 0:00:28.2]} 53... Rf4+ {[%clk 0:00:16.7]}
54. Ke2 {[%clk 0:00:27.8]} 54... Kg4 {[%clk 0:00:16.9]} 55. Kd3 {[%clk
0:00:27.4]} 55... Bf6 {[%clk 0:00:14.9]} 56. Kc2 {[%clk 0:00:26.8]} 56... Rb4
{[%clk 0:00:13.6]} 57. Ra6 {[%clk 0:00:25.3]} 57... Kf5 {[%clk 0:00:13.5]} 58.
Ra5+ {[%clk 0:00:25.2]} 58... Be5 {[%clk 0:00:13.8]} 59. Ra6 {[%clk 0:00:25.4]}
59... Ke4 {[%clk 0:00:13.9]} 60. Ra5 {[%clk 0:00:25.8]} 60... Bd4 {[%clk
0:00:14.3]} 61. Ra6 {[%clk 0:00:25.8]} 61... Kd5 {[%clk 0:00:14.3]} 62. Ra5+
{[%clk 0:00:25.2]} 62... Kc4 {[%clk 0:00:14.5]} 63. Ra8 {[%clk 0:00:25.6]} 63...
Rb2+ {[%clk 0:00:13.4]} 64. Kc1 {[%clk 0:00:25.5]} 64... Rb4 {[%clk 0:00:13.3]}
65. Kc2 {[%clk 0:00:24.6]} 65... Bc5 {[%clk 0:00:13.2]} 66. Ra6 {[%clk
0:00:22.7]} 66... Kb5 {[%clk 0:00:13]} 67. Ra8 {[%clk 0:00:22.2]} 67... Rf4
{[%clk 0:00:12.7]} 68. Kb2 {[%clk 0:00:21.1]} 68... Rf2+ {[%clk 0:00:11.8]} 69.
Kb1 {[%clk 0:00:20.4]} 69... Kb4 {[%clk 0:00:12.1]} 70. Rb8+ {[%clk 0:00:20]}
70... Kc4 {[%clk 0:00:12.4]} 71. Rc8 {[%clk 0:00:19.5]} 71... a3 {[%clk
0:00:12.1]} 72. Ka1 {[%clk 0:00:19.1]} 72... Kb4 {[%clk 0:00:11.3]} 73. Rb8+
{[%clk 0:00:18.6]} 73... Kc3 {[%clk 0:00:11.1]} 74. Rc8 {[%clk 0:00:18.7]} 74...
Kb3 {[%clk 0:00:11.5]} 75. Rb8+ {[%clk 0:00:17]} 75... Bb4 {[%clk 0:00:11.7]}
76. Rxb4+ {[%clk 0:00:16.6]} 76... Kxb4 {[%clk 0:00:11.8]} 0-1

[Event "Early-Titled-Tuesday-Blitz-April-02-2024"]
[Site "Chess.com"]
[Date "2024.04.02"]
[Round "8"]
[White "HeroWilczek"]
[Black "FredddieCroderg"]
[Result "1/2-1/2"]
[WhiteElo "2544"]
[BlackElo "2362"]
[TimeControl "180+1"]
[EndTime "9:30:17 PDT"]
[Termination "Game drawn by repetition"]

1. d4 {[%clk 0:03:00.9]} 1... Nf6 {[%clk 0:02:56.4]} 2. c4 {[%clk 0:03:01.1]}
2... g6 {[%clk 0:02:56]} 3. Nc3 {[%clk 0:03:01.1]} 3... Bg7 {[%clk 0:02:56.5]}
4. e4 {[%clk 0:03:01.5]} 4... O-O {[%clk 0:02:56.3]} 5. Bd3 {[%clk 0:03:00.9]}
5... c5 {[%clk 0:02:55]} 6. Nge2 {[%clk 0:02:57.7]} 6... cxd4 {[%clk 0:02:54.4]}
7. Nxd4 {[%clk 0:02:57.5]} 7... Nc6 {[%clk 0:02:39.8]} 8. Nc2 {[%clk 0:02:56.4]}
8... Ne5 {[%clk 0:02:35.8]} 9. Be2 {[%clk 0:02:55.8]} 9... d6 {[%clk 0:02:33.5]}
10. O-O {[%clk 0:02:55]} 10... Be6 {[%clk 0:02:32.8]} 11. b3 {[%clk 0:02:54.1]}
11... Rc8 {[%clk 0:02:32]} 12. Bb2 {[%clk 0:02:52.7]} 12... a6 {[%clk
0:02:29.9]} 13. h3 {[%clk 0:02:47.8]} 13... Ned7 {[%clk 0:02:16.6]} 14. Nd4
{[%clk 0:02:24.2]} 14... Nc5 {[%clk 0:02:08.9]} 15. Bf3 {[%clk 0:02:19.1]} 15...
Bd7 {[%clk 0:02:03.3]} 16. Re1 {[%clk 0:02:18.4]} 16... e5 {[%clk 0:01:55.7]}
17. Nc2 {[%clk 0:02:14.9]} 17... Qe7 {[%clk 0:01:54]} 18. Ne3 {[%clk 0:02:14.6]}
18... Bc6 {[%clk 0:01:51.5]} 19. b4 {[%clk 0:02:06.5]} 19... Ne6 {[%clk
0:01:50.3]} 20. Ncd5 {[%clk 0:02:00.7]} 20... Bxd5 {[%clk 0:01:44.1]} 21. exd5
{[%clk 0:01:55.5]} 21... Ng5 {[%clk 0:01:33.3]} 22. Rc1 {[%clk 0:01:53.8]} 22...
Nxf3+ {[%clk 0:01:32.3]} 23. Qxf3 {[%clk 0:01:53.5]} 23... Nh5 {[%clk
0:01:30.2]} 24. Nf1 {[%clk 0:01:38.5]} 24... f5 {[%clk 0:01:25.5]} 25. Qb3
{[%clk 0:01:36.8]} 25... Nf4 {[%clk 0:01:22.9]} 26. Kh2 {[%clk 0:01:31]} 26...
e4 {[%clk 0:01:20.9]} 27. Bxg7 {[%clk 0:01:23.4]} 27... Qxg7 {[%clk 0:01:20.7]}
28. Red1 {[%clk 0:01:23.5]} 28... Nd3 {[%clk 0:01:17.9]} 29. Rc2 {[%clk
0:01:20.6]} 29... Qe5+ {[%clk 0:01:17.5]} 30. Kg1 {[%clk 0:01:18.7]} 30... f4
{[%clk 0:01:05.3]} 31. Re2 {[%clk 0:01:16.5]} 31... Qd4 {[%clk 0:00:57.8]} 32.
Nd2 {[%clk 0:01:03.5]} 32... Nxf2 {[%clk 0:00:49]} 33. Rxf2 {[%clk 0:00:43.3]}
33... e3 {[%clk 0:00:49]} 34. Re2 {[%clk 0:00:41.7]} 34... exd2+ {[%clk
0:00:48.6]} 35. Kh2 {[%clk 0:00:42.4]} 35... f3 {[%clk 0:00:46.1]} 36. gxf3
{[%clk 0:00:41.6]} 36... Qf4+ {[%clk 0:00:43.7]} 37. Kg2 {[%clk 0:00:41.5]}
37... Rce8 {[%clk 0:00:41.4]} 38. Rdxd2 {[%clk 0:00:38.1]} 38... Qg5+ {[%clk
0:00:36.5]} 39. Kh2 {[%clk 0:00:31.9]} 39... Qf4+ {[%clk 0:00:36.2]} 40. Kg2
{[%clk 0:00:31.9]} 40... Qg5+ {[%clk 0:00:36]} 41. Kh2 {[%clk 0:00:32.5]} 41...
Rxe2+ {[%clk 0:00:34.9]} 42. Rxe2 {[%clk 0:00:32.6]} 42... h5 {[%clk 0:00:28]}
43. Qe3 {[%clk 0:00:31]} 43... Qf5 {[%clk 0:00:24]} 44. Qe6+ {[%clk 0:00:30.1]}
44... Qxe6 {[%clk 0:00:23.9]} 45. Rxe6 {[%clk 0:00:30.5]} 45... Rf4 {[%clk
0:00:23.9]} 46. Rxg6+ {[%clk 0:00:28.7]} 46... Kf7 {[%clk 0:00:21.8]} 47. Rxd6
{[%clk 0:00:28.5]} 47... Rxc4 {[%clk 0:00:21.9]} 48. Rb6 {[%clk 0:00:29.2]}
48... Ke7 {[%clk 0:00:19]} 49. Rxb7+ {[%clk 0:00:27]} 49... Kd6 {[%clk
0:00:19.1]} 50. Rb6+ {[%clk 0:00:27.7]} 50... Kxd5 {[%clk 0:00:19.2]} 51. Rxa6
{[%clk 0:00:28.4]} 51... Ke5 {[%clk 0:00:19.1]} 52. Kg3 {[%clk 0:00:14.3]} 52...
h4+ {[%clk 0:00:18]} 53. Kf2 {[%clk 0:00:15]} 53... Rxb4 {[%clk 0:00:13.1]} 54.
Rg6 {[%clk 0:00:10.9]} 54... Rb2+ {[%clk 0:00:10.9]} 55. Ke3 {[%clk 0:00:11.3]}
55... Rxa2 {[%clk 0:00:10.6]} 56. Rg5+ {[%clk 0:00:11.6]} 56... Kf6 {[%clk
0:00:07]} 57. Rg4 {[%clk 0:00:08.4]} 57... Ra3+ {[%clk 0:00:05.1]} 58. Ke4
{[%clk 0:00:08.7]} 58... Ra4+ {[%clk 0:00:04.1]} 59. Kd5 {[%clk 0:00:09.1]}
59... Ra3 {[%clk 0:00:03.9]} 60. Ke4 {[%clk 0:00:06.2]} 60... Ra4+ {[%clk
0:00:04]} 61. Ke3 {[%clk 0:00:06.8]} 61... Ra3+ {[%clk 0:00:04.5]} 62. Ke2
{[%clk 0:00:07.4]} 62... Ra2+ {[%clk 0:00:04.6]} 63. Kf1 {[%clk 0:00:08]} 63...
Ra3 {[%clk 0:00:04.5]} 64. Kf2 {[%clk 0:00:08.7]} 64... Ra2+ {[%clk 0:00:04.7]}
65. Kg1 {[%clk 0:00:09.3]} 65... Ra3 {[%clk 0:00:04.8]} 66. Kg2 {[%clk
0:00:09.7]} 66... Ra2+ {[%clk 0:00:05]} 67. Kh1 {[%clk 0:00:10.4]} 67... Ra3
{[%clk 0:00:05.2]} 68. Rf4+ {[%clk 0:00:10.3]} 68... Kg5 {[%clk 0:00:04.1]} 69.
Rg4+ {[%clk 0:00:10.9]} 69... Kf5 {[%clk 0:00:04.4]} 70. Rxh4 {[%clk 0:00:09.9]}
70... Rxf3 {[%clk 0:00:04.1]} 71. Kg2 {[%clk 0:00:10.6]} 71... Ra3 {[%clk
0:00:03]} 72. Rh5+ {[%clk 0:00:10.2]} 72... Kg6 {[%clk 0:00:03.1]} 73. Re5
{[%clk 0:00:08]} 73... Kh6 {[%clk 0:00:04]} 74. Rf5 {[%clk 0:00:07.2]} 74... Rb3
{[%clk 0:00:04.4]} 75. h4 {[%clk 0:00:07.1]} 75... Ra3 {[%clk 0:00:04.9]} 76.
Re5 {[%clk 0:00:07.6]} 76... Rb3 {[%clk 0:00:05]} 77. Rf5 {[%clk 0:00:08.2]}
77... Ra3 {[%clk 0:00:05.2]} 78. Re5 {[%clk 0:00:08.9]} 78... Rb3 {[%clk
0:00:05.5]} 79. Rf5 {[%clk 0:00:09.3]} 1/2-1/2

[Event "Early-Titled-Tuesday-Blitz-April-02-2024"]
[Site "Chess.com"]
[Date "2024.04.02"]
[Round "8"]
[White "visa"]
[Black "BestestBP"]
[Result "1/2-1/2"]
[WhiteElo "2355"]
[BlackElo "2210"]
[TimeControl "180+1"]
[EndTime "9:30:20 PDT"]
[Termination "Game drawn - insufficient material"]

1. Nf3 {[%clk 0:02:58.5]} 1... Nf6 {[%clk 0:02:59.7]} 2. b3 {[%clk 0:02:57.5]}
2... e6 {[%clk 0:02:58.2]} 3. Bb2 {[%clk 0:02:57.7]} 3... d5 {[%clk 0:02:59]} 4.
g3 {[%clk 0:02:58]} 4... c5 {[%clk 0:02:59.7]} 5. Bg2 {[%clk 0:02:57.9]} 5...
Nc6 {[%clk 0:03:00.3]} 6. O-O {[%clk 0:02:57.8]} 6... Be7 {[%clk 0:03:00.9]} 7.
e3 {[%clk 0:02:49.6]} 7... O-O {[%clk 0:03:00.8]} 8. Qe2 {[%clk 0:02:50.1]} 8...
b6 {[%clk 0:03:01.1]} 9. Rd1 {[%clk 0:02:50.2]} 9... Bb7 {[%clk 0:03:01.4]} 10.
c4 {[%clk 0:02:49.3]} 10... Qc7 {[%clk 0:02:53.4]} 11. cxd5 {[%clk 0:02:47.9]}
11... exd5 {[%clk 0:02:51.9]} 12. d4 {[%clk 0:02:46.7]} 12... Rfe8 {[%clk
0:02:36.9]} 13. Nc3 {[%clk 0:02:42.7]} 13... Rad8 {[%clk 0:02:35.4]} 14. Rac1
{[%clk 0:02:37.2]} 14... Qb8 {[%clk 0:02:32.7]} 15. dxc5 {[%clk 0:02:35.9]}
15... bxc5 {[%clk 0:02:31.6]} 16. Na4 {[%clk 0:02:36.1]} 16... c4 {[%clk
0:02:18.5]} 17. bxc4 {[%clk 0:02:23.8]} 17... Ba6 {[%clk 0:02:18.4]} 18. Nd2
{[%clk 0:01:53.3]} 18... Na5 {[%clk 0:02:14.9]} 19. Bxf6 {[%clk 0:01:36.9]}
19... Bxf6 {[%clk 0:02:08.3]} 20. Nc5 {[%clk 0:01:36.8]} 20... Bxc4 {[%clk
0:01:59.1]} 21. Nxc4 {[%clk 0:01:36.4]} 21... dxc4 {[%clk 0:01:54.9]} 22. Nd7
{[%clk 0:01:14.7]} 22... Qb2 {[%clk 0:01:14.3]} 23. Rc2 {[%clk 0:01:02.9]} 23...
Qb4 {[%clk 0:01:05.7]} 24. Nxf6+ {[%clk 0:00:50.1]} 24... gxf6 {[%clk
0:01:06.6]} 25. Rxd8 {[%clk 0:00:44.6]} 25... Rxd8 {[%clk 0:01:05.8]} 26. Be4
{[%clk 0:00:41.6]} 26... Qc5 {[%clk 0:00:44.6]} 27. Qg4+ {[%clk 0:00:31.9]}
27... Qg5 {[%clk 0:00:44.7]} 28. Qf3 {[%clk 0:00:21.8]} 28... h5 {[%clk
0:00:27.8]} 29. h4 {[%clk 0:00:21.7]} 29... Qe5 {[%clk 0:00:24.5]} 30. Kg2
{[%clk 0:00:19.9]} 30... Kg7 {[%clk 0:00:22.5]} 31. Qf4 {[%clk 0:00:10.9]} 31...
Rd1 {[%clk 0:00:13.3]} 32. Qxe5 {[%clk 0:00:05.5]} 32... fxe5 {[%clk 0:00:13.7]}
33. Bf3 {[%clk 0:00:06.2]} 33... Rd8 {[%clk 0:00:05.4]} 34. Bxh5 {[%clk
0:00:06.4]} 34... e4 {[%clk 0:00:04.1]} 35. Bg4 {[%clk 0:00:06.4]} 35... Kf6
{[%clk 0:00:04.5]} 36. h5 {[%clk 0:00:06.1]} 36... Kg5 {[%clk 0:00:04.5]} 37.
Be2 {[%clk 0:00:06.2]} 37... Rc8 {[%clk 0:00:03.7]} 38. f3 {[%clk 0:00:04.4]}
38... exf3+ {[%clk 0:00:03.5]} 39. Kxf3 {[%clk 0:00:05.3]} 39... f5 {[%clk
0:00:03.5]} 40. e4 {[%clk 0:00:05.2]} 40... fxe4+ {[%clk 0:00:03.7]} 41. Kxe4
{[%clk 0:00:06.1]} 41... Re8+ {[%clk 0:00:03.8]} 42. Kd4 {[%clk 0:00:05.9]}
42... Rd8+ {[%clk 0:00:04]} 43. Kc5 {[%clk 0:00:06.3]} 43... Rc8+ {[%clk
0:00:03]} 44. Kb5 {[%clk 0:00:06.5]} 44... Nb7 {[%clk 0:00:03]} 45. Bxc4 {[%clk
0:00:05.3]} 45... Nd6+ {[%clk 0:00:03.1]} 46. Kb4 {[%clk 0:00:05.9]} 46... Rb8+
{[%clk 0:00:02.6]} 47. Kc3 {[%clk 0:00:04.9]} 47... Ne4+ {[%clk 0:00:02.5]} 48.
Kd4 {[%clk 0:00:05.1]} 48... Nxg3 {[%clk 0:00:02.2]} 49. Rg2 {[%clk 0:00:04.4]}
49... Kf4 {[%clk 0:00:02.5]} 50. h6 {[%clk 0:00:04.3]} 50... Nf5+ {[%clk
0:00:02.5]} 51. Kd5 {[%clk 0:00:04]} 51... Rd8+ {[%clk 0:00:02.5]} 52. Kc6
{[%clk 0:00:03.7]} 52... Rc8+ {[%clk 0:00:02.3]} 53. Kb5 {[%clk 0:00:03.1]}
53... a6+ {[%clk 0:00:02.5]} 54. Kb4 {[%clk 0:00:02.5]} 54... Nxh6 {[%clk
0:00:02.9]} 55. Rf2+ {[%clk 0:00:02.6]} 55... Ke5 {[%clk 0:00:02.7]} 56. Rh2
{[%clk 0:00:02.4]} 56... Nf5 {[%clk 0:00:02.7]} 57. Rh5 {[%clk 0:00:03.3]} 57...
Kf6 {[%clk 0:00:02.6]} 58. Bd3 {[%clk 0:00:03.4]} 58... Ne3 {[%clk 0:00:02.4]}
59. Ka5 {[%clk 0:00:03.7]} 59... Rd8 {[%clk 0:00:02]} 60. Rh6+ {[%clk
0:00:04.6]} 60... Ke5 {[%clk 0:00:02.3]} 61. Rxa6 {[%clk 0:00:04.8]} 61... Rxd3
{[%clk 0:00:02.5]} 62. a4 {[%clk 0:00:04.8]} 62... Rd5+ {[%clk 0:00:02.5]} 63.
Kb6 {[%clk 0:00:04.9]} 63... Nc4+ {[%clk 0:00:03.2]} 64. Ka7 {[%clk 0:00:04.7]}
64... Rd7+ {[%clk 0:00:03.4]} 65. Kb8 {[%clk 0:00:04.7]} 65... Nd6 {[%clk
0:00:03.6]} 66. Ra5+ {[%clk 0:00:04.2]} 66... Ke6 {[%clk 0:00:03.9]} 67. Ra7
{[%clk 0:00:03.6]} 67... Nc4 {[%clk 0:00:03.7]} 68. Rxd7 {[%clk 0:00:03.3]}
68... Kxd7 {[%clk 0:00:04.4]} 69. Kb7 {[%clk 0:00:03.7]} 69... Nd6+ {[%clk
0:00:03.6]} 70. Kb6 {[%clk 0:00:03.9]} 70... Nc4+ {[%clk 0:00:03.6]} 71. Kb5
{[%clk 0:00:04.1]} 71... Nd6+ {[%clk 0:00:04]} 72. Ka6 {[%clk 0:00:03.9]} 72...
Kc7 {[%clk 0:00:03.9]} 73. a5 {[%clk 0:00:04.8]} 73... Kc6 {[%clk 0:00:04.1]}
74. Ka7 {[%clk 0:00:05.1]} 74... Kb5 {[%clk 0:00:04.1]} 75. a6 {[%clk 0:00:06]}
75... Nc8+ {[%clk 0:00:03.8]} 76. Kb7 {[%clk 0:00:05.8]} 76... Nd6+ {[%clk
0:00:04.4]} 77. Ka7 {[%clk 0:00:05.8]} 77... Nc8+ {[%clk 0:00:05]} 78. Kb7
{[%clk 0:00:06.2]} 78... Nd6+ {[%clk 0:00:05.7]} 79. Kc7 {[%clk 0:00:06.8]}
79... Kxa6 {[%clk 0:00:05.7]} 1/2-1/2